bitfinex/quotes_BTCUSD_20230403
["timestamp","ask_amount","ask_price","bid_price","bid_amount"]
[1680523069604,0.02461735,28236.0,28235.0,0.64490097]
[1680523070044,0.02661735,28236.0,28235.0,0.64990097]
[1680523070287,0.00018,28242.0,28241.0,0.2]
[1680523070503,0.0648798,28243.0,28242.0,0.123928]
[1680523070722,0.0648798,28243.0,28242.0,0.38986887]
[1680523070954,0.0648798,28243.0,28242.0,0.247894]
[1680523071182,0.0648798,28243.0,28242.0,0.20745461]
[1680523071643,0.0648798,28243.0,28242.0,0.25030261]
[1680523071884,0.0658798,28243.0,28242.0,0.26735761]
[1680523073204,0.0658798,28243.0,28242.0,0.22445461]
[1680523073855,0.0658798,28243.0,28242.0,0.26313461]
[1680523074104,0.0658798,28243.0,28242.0,0.11823061]
[1680523074946,0.0658798,28243.0,28242.0,0.03483061]
[1680523075160,0.0658798,28243.0,28242.0,0.034704]
[1680523075844,0.0658798,28243.0,28242.0,0.03665686]
[1680523076282,0.0658798,28243.0,28242.0,0.83230912]
[1680523076522,0.06018916,28243.0,28242.0,1.81793712]
[1680523076778,0.03500168,28243.0,28242.0,1.68446225]
[1680523077224,0.03500168,28243.0,28242.0,1.66746225]
[1680523077225,0.03400168,28243.0,28242.0,1.66746225]
[1680523077465,0.03400168,28243.0,28242.0,1.84546225]
[1680523077896,0.0338064,28243.0,28242.0,1.81746225]
[1680523078146,0.0338064,28243.0,28242.0,1.84546225]
[1680523078373,0.0338064,28243.0,28242.0,1.81746225]
[1680523078604,0.0338064,28243.0,28242.0,1.84546225]
[1680523078828,0.03361207,28243.0,28242.0,1.84546225]
[1680523079756,0.03341863,28243.0,28242.0,1.84546225]
[1680523080425,0.03341863,28243.0,28242.0,1.84539625]
[1680523080953,0.03322607,28243.0,28242.0,1.84539625]
[1680523081169,0.03322607,28243.0,28242.0,1.69539625]
[1680523081601,0.02398,28250.0,28249.0,0.252918]
[1680523081805,0.02416,28250.0,28249.0,0.39489287]
[1680523082014,0.02416,28250.0,28249.0,0.292875]
[1680523082235,0.02416,28250.0,28249.0,0.252918]
[1680523082453,0.02416,28250.0,28249.0,0.293534]
[1680523083277,0.02398,28250.0,28249.0,0.293534]
[1680523083714,0.02398,28250.0,28249.0,0.31036859]
[1680523090794,0.02398,28250.0,28249.0,0.3104352]
[1680523091035,0.02398,28250.0,28249.0,0.3104952]
[1680523091486,0.02398,28250.0,28249.0,0.31036859]
[1680523091934,0.02398,28250.0,28249.0,0.39356859]
[1680523093600,0.02398,28250.0,28249.0,0.23435359]
[1680523093827,0.0419,28250.0,28249.0,0.01683459]
[1680523094043,0.39687497,28250.0,28249.0,0.01683459]
[1680523094262,0.15,28249.0,28245.0,0.19994661]
[1680523094491,0.0836,28246.0,28245.0,0.19982]
[1680523094708,0.100898,28246.0,28245.0,0.19994661]
[1680523094931,0.100898,28246.0,28245.0,0.19988661]
[1680523095177,0.100898,28246.0,28245.0,0.19982]
[1680523095628,0.116898,28246.0,28245.0,0.20182]
[1680523096339,0.116898,28246.0,28243.0,0.00012661]
[1680523096340,0.84379297,28246.0,28243.0,6e-05]
[1680523096565,0.0836,28244.0,28241.0,0.017704]
[1680523096797,0.45508897,28243.0,28241.0,0.017704]
[1680523097031,0.017894,28242.0,28241.0,0.017704]
[1680523097254,0.37286897,28242.0,28240.0,0.017704]
[1680523097489,0.016527,28241.0,28240.0,0.017704]
[1680523098170,0.016527,28241.0,28240.0,0.019704]
[1680523098511,0.016527,28241.0,28240.0,0.017704]
[1680523098728,0.033527,28241.0,28240.0,0.0213769]
[1680523100883,0.66904217,28241.0,28240.0,0.0036729]
[1680523101113,0.62190197,28241.0,28240.0,0.0036729]
[1680523101356,0.82190197,28241.0,28240.0,0.0036729]
[1680523101816,0.80490197,28241.0,28235.0,0.017708]
[1680523102051,0.45457497,28240.0,28235.0,0.017708]
[1680523102279,0.017064,28239.0,28235.0,0.017708]
[1680523102487,0.37203897,28239.0,28235.0,0.017708]
[1680523102712,0.018021,28238.0,28236.0,0.00167394]
[1680523103980,0.029021,28238.0,28236.0,0.01938094]
[1680523104193,0.017508,28237.0,28236.0,0.01938094]
[1680523104823,0.011,28238.0,28236.0,0.01938094]
[1680523105026,0.017043,28237.0,28236.0,0.01938094]
[1680523105458,0.01749,28239.0,28236.0,0.01938094]
[1680523106402,0.011,28237.0,28236.0,0.01938094]
[1680523106618,0.016233,28237.0,28236.0,0.01938094]
[1680523106843,0.016962,28237.0,28236.0,0.01938094]
[1680523107050,0.017092,28238.0,28236.0,0.01938094]
[1680523107258,0.016688,28239.0,28236.0,0.01938094]
[1680523107482,0.011,28237.0,28236.0,0.01938094]
[1680523107745,0.017935,28237.0,28236.0,0.01938094]
[1680523107982,0.017,28237.0,28236.0,0.017707]
[1680523108203,0.0829,28240.0,28236.0,0.017707]
[1680523108410,0.033848,28239.0,28236.0,0.017707]
[1680523108620,0.016539,28238.0,28236.0,0.017707]
[1680523109030,0.016539,28238.0,28236.0,0.01938094]
[1680523109474,0.017,28237.0,28236.0,0.01938094]
[1680523109690,0.018164,28237.0,28236.0,0.01938094]
[1680523109914,0.017,28238.0,28236.0,0.01938094]
[1680523110143,0.017721,28237.0,28236.0,0.01938094]
[1680523110367,0.017,28237.0,28236.0,0.01938094]
[1680523110595,0.017849,28237.0,28236.0,0.01938094]
[1680523110816,0.016674,28239.0,28236.0,0.01938094]
[1680523111029,0.017,28238.0,28236.0,0.01938094]
[1680523111252,0.017842,28237.0,28236.0,0.01938094]
[1680523111516,0.017275,28239.0,28236.0,0.01938094]
[1680523111754,0.43857497,28237.0,28236.0,0.00167394]
[1680523111972,0.45651497,28237.0,28236.0,0.00167394]
[1680523112194,0.47351497,28237.0,28236.0,0.00167394]
[1680523112408,0.45651497,28237.0,28236.0,0.00167394]
[1680523112870,0.45651497,28237.0,28233.0,0.01783561]
[1680523113065,0.016498,28236.0,28233.0,0.01783561]
[1680523113308,0.016498,28236.0,28233.0,0.00012661]
[1680523113757,0.016498,28236.0,28233.0,0.017709]
[1680523113985,0.027498,28236.0,28234.0,0.00166694]
[1680523114224,0.017916,28235.0,28234.0,0.00179355]
[1680523114443,0.017916,28235.0,28234.0,0.00166694]
[1680523114664,0.017916,28235.0,28234.0,0.01937594]
[1680523115368,0.017069,28236.0,28234.0,0.01937594]
[1680523116031,0.017,28235.0,28234.0,0.01937594]
[1680523116272,0.01747,28235.0,28234.0,0.01937594]
[1680523116500,0.035224,28236.0,28234.0,0.01937594]
[1680523116724,0.01699607,28235.0,28234.0,0.01937594]
[1680523117945,0.017068,28236.0,28234.0,0.01937594]
[1680523118154,0.017,28235.0,28234.0,0.01937594]
[1680523119782,0.01683331,28235.0,28234.0,0.01937594]
[1680523120235,0.00018,28240.0,28235.0,0.53813965]
[1680523120456,1.9568,28244.0,28235.0,0.53813965]
[1680523120457,0.2,28243.0,28238.0,0.0836]
[1680523120686,0.2,28243.0,28239.0,0.66289384]
[1680523120905,0.2,28243.0,28240.0,0.040089]
[1680523121121,0.2,28243.0,28241.0,0.053113]
[1680523121345,0.2,28243.0,28242.0,0.041852]
[1680523121568,0.2,28243.0,28242.0,0.130372]
[1680523121812,0.2,28243.0,28242.0,0.08852]
[1680523122235,0.202,28243.0,28242.0,0.08852]
[1680523123544,0.2,28243.0,28242.0,0.08852]
[1680523123749,0.201,28243.0,28242.0,0.10117839]
[1680523123964,0.2,28243.0,28242.0,0.09017839]
[1680523124384,0.201,28243.0,28242.0,0.10117839]
[1680523124797,0.201,28243.0,28242.0,0.10106644]
[1680523125904,0.201,28243.0,28242.0,0.10117839]
[1680523126948,6e-05,28248.0,28243.0,0.15]
[1680523127106,0.00018,28248.0,28244.0,0.90876484]
[1680523127338,0.02398,28250.0,28247.0,0.0832]
[1680523127569,0.02398,28250.0,28248.0,0.30885087]
[1680523127778,0.02398,28250.0,28249.0,0.039343]
[1680523127994,0.02398,28250.0,28249.0,0.05716861]
[1680523128461,0.02498,28250.0,28249.0,0.05716861]
[1680523129119,0.02498,28250.0,28249.0,0.05882445]
[1680523129358,0.02398,28250.0,28249.0,0.05716861]
[1680523129580,0.02498,28250.0,28249.0,0.07316861]
[1680523131827,0.02498,28250.0,28249.0,0.07480218]
[1680523132097,0.22498,28250.0,28249.0,0.01776018]
[1680523132322,0.241442,28250.0,28249.0,0.01776018]
[1680523132558,0.241442,28250.0,28249.0,0.01775357]
[1680523132559,0.76311697,28250.0,28249.0,0.01775357]
[1680523132789,0.76311697,28250.0,28249.0,0.01763357]
[1680523133037,0.91311697,28250.0,28249.0,0.01763357]
[1680523133285,0.82991697,28250.0,28249.0,0.00163357]
[1680523133521,0.83191697,28250.0,28249.0,0.00163357]
[1680523134000,0.83191697,28250.0,28244.0,0.017702]
[1680523134281,0.0831,28247.0,28244.0,0.017702]
[1680523134499,0.017249,28246.0,28244.0,0.017702]
[1680523134721,0.017249,28246.0,28244.0,0.01782861]
[1680523135192,0.2,28245.0,28244.0,0.017702]
[1680523135414,0.2,28245.0,28244.0,0.01782861]
[1680523135645,0.2,28245.0,28244.0,0.00212661]
[1680523135875,0.21711,28245.0,28244.0,0.01776861]
[1680523136098,0.2,28245.0,28244.0,0.01982861]
[1680523136325,0.2,28245.0,28244.0,0.01782861]
[1680523136550,0.207,28245.0,28244.0,0.01982861]
[1680523136774,0.2,28245.0,28244.0,0.01782861]
[1680523136991,0.207,28245.0,28244.0,0.01982861]
[1680523137440,0.007,28245.0,28244.0,0.37480358]
[1680523137692,0.007,28245.0,28244.0,0.41709958]
[1680523138367,0.2,28245.0,28244.0,0.41509958]
[1680523138583,0.2,28245.0,28244.0,0.43809958]
[1680523141365,0.2,28245.0,28244.0,0.39580358]
[1680523142927,0.2,28245.0,28244.0,0.37280358]
[1680523143151,0.201,28245.0,28244.0,0.38280358]
[1680523144441,0.201,28245.0,28244.0,0.02782861]
[1680523146277,0.00012,28249.0,28244.0,0.60817845]
[1680523146506,0.02398,28250.0,28248.0,0.1668]
[1680523146723,0.02398,28250.0,28249.0,0.34927087]
[1680523146945,0.02398,28250.0,28249.0,0.507296]
[1680523147625,0.02398,28250.0,28249.0,0.529356]
[1680523147843,0.02398,28250.0,28249.0,0.50742261]
[1680523148284,0.02398,28250.0,28249.0,0.53542261]
[1680523148937,0.02398,28250.0,28249.0,0.50742261]
[1680523149160,0.02398,28250.0,28249.0,0.53542261]
[1680523153100,0.02398,28250.0,28249.0,0.50742261]
[1680523153321,0.02398,28250.0,28249.0,0.53542261]
[1680523155804,0.02398,28250.0,28249.0,1.32669826]
[1680523156274,0.02398,28250.0,28249.0,1.69849826]
[1680523156498,0.02398,28250.0,28249.0,1.67049826]
[1680523156720,0.02398,28250.0,28249.0,1.69849826]
[1680523156941,0.02398,28250.0,28249.0,1.84849826]
[1680523157396,0.02398,28250.0,28249.0,1.82049826]
[1680523157711,0.02398,28250.0,28249.0,2.13819826]
[1680523157912,0.006497,28253.0,28252.0,0.18534]
[1680523158142,0.006497,28253.0,28252.0,2.35183297]
[1680523158589,0.006497,28253.0,28252.0,2.36033297]
[1680523160173,0.006497,28253.0,28252.0,2.21033297]
[1680523160413,0.006497,28253.0,28252.0,2.23833297]
[1680523160627,0.006497,28253.0,28252.0,2.21033297]
[1680523160846,0.006497,28253.0,28252.0,2.23833297]
[1680523162026,0.006497,28253.0,28252.0,1.92063297]
[1680523162256,0.006497,28253.0,28252.0,1.06743597]
[1680523162489,0.006497,28253.0,28252.0,0.89045797]
[1680523162936,0.006497,28253.0,28250.0,0.00012661]
[1680523163170,0.2,28251.0,28248.0,0.00894675]
[1680523163392,0.2,28251.0,28250.0,0.053096]
[1680523163612,0.20018,28251.0,28250.0,0.053096]
[1680523165632,0.20018,28251.0,28250.0,0.062096]
[1680523172818,0.20018,28251.0,28250.0,0.053096]
[1680523173053,0.20018,28251.0,28250.0,0.056096]
[1680523173830,0.20018,28251.0,28250.0,0.053096]
[1680523174152,0.20218,28251.0,28250.0,0.05458376]
[1680523174300,0.20018,28251.0,28250.0,0.05458376]
[1680523174506,0.20218,28251.0,28250.0,0.05458376]
[1680523175178,0.20018,28251.0,28250.0,0.05458376]
[1680523175700,0.20218,28251.0,28250.0,0.05458376]
[1680523175914,0.20018,28251.0,28250.0,0.01918676]
[1680523176669,0.65582897,28251.0,28250.0,0.00148776]
[1680523176928,0.65782897,28251.0,28250.0,0.00148776]
[1680523177150,0.80782897,28251.0,28250.0,0.00148776]
[1680523177366,0.2,28248.0,28247.0,0.0177]
[1680523177802,0.217038,28248.0,28247.0,0.0177]
[1680523178708,0.219038,28248.0,28247.0,0.0177]
[1680523179529,0.217038,28248.0,28247.0,0.0177]
[1680523179713,0.219038,28248.0,28247.0,0.0177]
[1680523181117,0.20218,28248.0,28247.0,0.0177]
[1680523181327,0.218671,28248.0,28247.0,0.0177]
[1680523181544,0.218491,28248.0,28247.0,0.01762438]
[1680523182398,0.219419,28248.0,28247.0,0.01762438]
[1680523182577,0.202,28248.0,28247.0,0.01762438]
[1680523183234,0.2,28248.0,28247.0,0.01762438]
[1680523183447,0.202,28248.0,28247.0,0.01862438]
[1680523183656,0.2,28248.0,28247.0,0.01762438]
[1680523183868,0.202,28248.0,28247.0,0.01862438]
[1680523185354,0.219387,28248.0,28247.0,0.01862438]
[1680523185789,0.202,28248.0,28247.0,0.01862438]
[1680523188896,0.2,28248.0,28247.0,0.01762438]
[1680523189111,0.2,28248.0,28247.0,0.02662438]
[1680523190433,0.2,28248.0,28247.0,1.12972238]
[1680523190648,0.2,28248.0,28247.0,0.72168338]
[1680523191104,0.2,28248.0,28247.0,0.36779099]
[1680523191339,0.006497,28253.0,28248.0,1.19679835]
[1680523191340,6e-05,28250.0,28248.0,1.19679835]
[1680523191559,0.006497,28253.0,28250.0,0.40714]
[1680523191783,0.22398,28255.0,28252.0,0.20254]
[1680523192073,0.22398,28255.0,28253.0,0.68906087]
[1680523192291,0.22398,28255.0,28254.0,0.040992]
[1680523192512,0.22398,28255.0,28254.0,0.058688]
[1680523193410,0.22398,28255.0,28254.0,0.142288]
[1680523193640,0.2,28252.0,28251.0,0.00012661]
[1680523193869,0.2,28249.0,28246.0,0.00012661]
[1680523194097,0.2,28247.0,28246.0,0.39037697]
[1680523194326,0.2,28247.0,28246.0,0.40807797]
[1680523194551,0.20018,28247.0,28246.0,0.40807797]
[1680523195010,0.2,28247.0,28246.0,0.41107797]
[1680523195235,0.23468272,28247.0,28246.0,0.44807397]
[1680523195455,0.23486272,28247.0,28246.0,0.47107397]
[1680523195675,0.23468272,28247.0,28246.0,0.44807397]
[1680523195947,0.23468272,28247.0,28246.0,0.47607397]
[1680523196175,0.23468272,28247.0,28246.0,0.47620058]
[1680523196176,0.2,28247.0,28246.0,0.47620058]
[1680523199066,0.23705014,28247.0,28246.0,0.41862752]
[1680523200641,0.23705014,28247.0,28246.0,0.01054955]
[1680523200864,0.23705014,28247.0,28246.0,0.01042294]
[1680523201764,0.23705014,28247.0,28246.0,0.02812394]
[1680523202630,0.23705014,28247.0,28246.0,0.01042294]
[1680523202846,0.23705014,28247.0,28246.0,0.02812394]
[1680523203994,0.23705014,28247.0,28246.0,0.38309891]
[1680523204240,0.23705014,28247.0,28246.0,0.42486752]
[1680523205341,0.23690848,28247.0,28246.0,0.42486752]
[1680523206404,0.23676682,28247.0,28246.0,0.42486752]
[1680523206625,0.23676682,28247.0,28246.0,0.38322552]
[1680523207327,0.23676682,28247.0,28246.0,0.02825055]
[1680523207540,0.23676682,28247.0,28246.0,0.02812394]
[1680523209808,0.1801517,28247.0,28246.0,0.02812394]
[1680523210266,0.1801517,28247.0,28246.0,0.01042294]
[1680523210523,0.2800157,28247.0,28246.0,0.01042294]
[1680523211673,0.2800157,28247.0,28243.0,0.017703]
[1680523211899,0.1831517,28247.0,28246.0,0.002]
[1680523212131,0.2814357,28247.0,28243.0,0.017703]
[1680523212358,0.017849,28246.0,28243.0,0.017703]
[1680523212593,0.14295927,28244.0,28243.0,0.017703]
[1680523213678,0.14295927,28244.0,28243.0,0.01905917]
[1680523214335,0.14595927,28244.0,28243.0,0.02005917]
[1680523215072,0.14295927,28244.0,28243.0,0.01905917]
[1680523215292,0.14595927,28244.0,28243.0,0.02005917]
[1680523215753,0.14295927,28244.0,28243.0,0.01905917]
[1680523216609,0.14595927,28244.0,28243.0,0.02005917]
[1680523219321,0.14595927,28244.0,28243.0,0.79018514]
[1680523219770,0.1458236,28244.0,28243.0,0.79018514]
[1680523219995,0.1458236,28244.0,28243.0,0.78918514]
[1680523219996,0.1428236,28244.0,28243.0,0.78918514]
[1680523220221,0.1428236,28244.0,28243.0,0.79818514]
[1680523220439,0.1428236,28244.0,28243.0,0.78918514]
[1680523220688,0.1428236,28244.0,28243.0,0.81218514]
[1680523220909,0.14268855,28244.0,28243.0,0.78918514]
[1680523221132,0.14268855,28244.0,28243.0,0.79818514]
[1680523221390,0.14268855,28244.0,28243.0,0.78918514]
[1680523221607,0.14268855,28244.0,28243.0,0.81218514]
[1680523221833,0.14255411,28244.0,28243.0,0.44038514]
[1680523222276,0.14255411,28244.0,28243.0,0.39703414]
[1680523222501,0.13755411,28244.0,28243.0,0.01905917]
[1680523222772,0.13755411,28244.0,28243.0,0.02805917]
[1680523222773,0.13742028,28244.0,28243.0,0.02805917]
[1680523223907,0.13728706,28244.0,28243.0,0.02805917]
[1680523224567,0.13728706,28244.0,28243.0,0.01035617]
[1680523224795,0.15465729,28244.0,28243.0,0.01035617]
[1680523225027,0.13715929,28244.0,28243.0,0.01035617]
[1680523225461,0.13715929,28244.0,28243.0,0.00135617]
[1680523225690,0.13715929,28244.0,28243.0,0.02205917]
[1680523226611,0.13715929,28244.0,28243.0,0.00435617]
[1680523227525,0.15429729,28244.0,28243.0,0.00135617]
[1680523228184,0.13715929,28244.0,28243.0,0.00135617]
[1680523228403,0.15661429,28244.0,28243.0,0.00135617]
[1680523229038,0.14015929,28244.0,28243.0,0.00135617]
[1680523229255,0.13715929,28244.0,28243.0,0.00135617]
[1680523229479,0.14015929,28244.0,28243.0,0.00135617]
[1680523231301,0.14015929,28244.0,28243.0,0.01905917]
[1680523231729,0.15712529,28244.0,28243.0,0.01905917]
[1680523231970,0.15712529,28244.0,28243.0,0.00135617]
[1680523233028,0.15412529,28244.0,28243.0,0.00135617]
[1680523233396,0.15812529,28244.0,28243.0,0.00235617]
[1680523234700,0.15804329,28244.0,28243.0,0.00235617]
[1680523235495,0.14115929,28244.0,28243.0,0.00235617]
[1680523235779,0.15843529,28244.0,28243.0,0.00235617]
[1680523237580,0.14115929,28244.0,28243.0,0.00235617]
[1680523237782,0.14115929,28244.0,28243.0,0.02005917]
[1680523238257,0.14115929,28244.0,28243.0,0.00235617]
[1680523239335,0.14115929,28244.0,28243.0,0.09087317]
[1680523239756,0.14115929,28244.0,28243.0,0.02005917]
[1680523239973,0.13615929,28244.0,28243.0,0.02005917]
[1680523240697,0.13215929,28244.0,28243.0,0.01905917]
[1680523240922,0.13215929,28244.0,28243.0,0.02205917]
[1680523241148,0.13215929,28244.0,28243.0,0.01905917]
[1680523241372,0.13515929,28244.0,28243.0,0.01905917]
[1680523242050,0.13215929,28244.0,28243.0,0.00135617]
[1680523242296,0.13215929,28244.0,28243.0,0.00435617]
[1680523242494,0.13215929,28244.0,28243.0,0.00135617]
[1680523243391,0.13215929,28244.0,28243.0,0.01135617]
[1680523243605,0.13215929,28244.0,28243.0,0.00135617]
[1680523243900,0.13515929,28244.0,28243.0,0.01905917]
[1680523244154,0.13215929,28244.0,28243.0,0.01905917]
[1680523244382,0.13215929,28244.0,28243.0,0.00135617]
[1680523245048,0.13515929,28244.0,28243.0,0.00135617]
[1680523245281,0.13215929,28244.0,28243.0,0.00135617]
[1680523245494,0.13215929,28244.0,28243.0,0.00435617]
[1680523245997,0.70398526,28244.0,28243.0,0.00435617]
[1680523246461,0.70398526,28244.0,28243.0,0.00135617]
[1680523246678,0.70398526,28244.0,28243.0,0.003]
[1680523246898,0.13215929,28241.0,28240.0,0.117705]
[1680523247123,0.13215929,28241.0,28240.0,0.1]
[1680523247343,0.13215929,28241.0,28240.0,0.117705]
[1680523247562,0.14925229,28241.0,28240.0,0.117705]
[1680523247746,0.14925229,28241.0,28240.0,0.11897826]
[1680523247991,0.15225229,28241.0,28240.0,0.11897826]
[1680523248399,0.14925229,28241.0,28240.0,0.11897826]
[1680523249280,0.15325229,28241.0,28240.0,0.11997826]
[1680523249546,0.14925229,28241.0,28240.0,0.10127326]
[1680523249772,0.15325229,28241.0,28240.0,0.10227326]
[1680523250791,0.14925229,28241.0,28240.0,0.10127326]
[1680523251209,0.15325229,28241.0,28240.0,0.10227326]
[1680523252927,0.14925229,28241.0,28240.0,0.10127326]
[1680523253144,0.15325229,28241.0,28240.0,0.10327326]
[1680523256847,0.50822726,28241.0,28240.0,0.10327326]
[1680523259076,0.15325229,28241.0,28240.0,0.24524813]
[1680523259294,0.004,28241.0,28240.0,0.90077603]
[1680523259516,0.13215929,28244.0,28240.0,1.20070942]
[1680523259722,0.13215929,28244.0,28241.0,0.339967]
[1680523259981,0.13215929,28244.0,28242.0,0.093683]
[1680523260204,0.13215929,28244.0,28243.0,0.044773]
[1680523260420,0.13215929,28244.0,28243.0,0.062476]
[1680523262037,0.13215929,28244.0,28243.0,0.072476]
[1680523262258,0.13215929,28244.0,28243.0,0.063941]
[1680523263135,0.13215929,28244.0,28243.0,0.053941]
[1680523264257,0.13315929,28244.0,28243.0,0.054941]
[1680523264468,0.13215929,28244.0,28243.0,0.053941]
[1680523264700,0.13315929,28244.0,28243.0,0.05616521]
[1680523268298,0.13315929,28244.0,28243.0,0.20616521]
[1680523269495,0.13315929,28244.0,28243.0,1.39888743]
[1680523269706,0.13315929,28244.0,28243.0,1.69888743]
[1680523270372,0.13315929,28244.0,28243.0,1.69788743]
[1680523270373,0.13215929,28244.0,28243.0,1.69788743]
[1680523270597,0.13215929,28244.0,28243.0,1.79260266]
[1680523270826,0.13215929,28244.0,28243.0,1.70794743]
[1680523271050,0.13215929,28244.0,28243.0,1.79272927]
[1680523271725,0.13215929,28244.0,28243.0,1.33416679]
[1680523272173,0.13203069,28244.0,28243.0,1.18404018]
[1680523273104,0.13190267,28244.0,28243.0,0.80374018]
[1680523274167,0.13177523,28244.0,28243.0,0.80374018]
[1680523275253,0.13164787,28244.0,28243.0,0.80374018]
[1680523276101,0.13152167,28244.0,28243.0,0.80374018]
[1680523276767,0.13152167,28244.0,28243.0,1.17554018]
[1680523276980,0.13152167,28244.0,28243.0,1.18404018]
[1680523277192,0.13139604,28244.0,28243.0,1.18404018]
[1680523277411,1.9568,28252.0,28244.0,0.15]
[1680523277633,6e-05,28248.0,28246.0,0.123908]
[1680523277852,0.00018,28251.0,28247.0,0.038711]
[1680523278073,0.00018,28252.0,28248.0,0.0531]
[1680523278289,0.00018,28252.0,28248.0,0.19507487]
[1680523278753,0.00018,28252.0,28248.0,0.0531]
[1680523278974,0.00018,28252.0,28248.0,0.05434934]
[1680523279202,0.00118,28252.0,28248.0,0.0551]
[1680523280635,0.001,28252.0,28248.0,0.0551]
[1680523280802,0.00118,28252.0,28248.0,0.0551]
[1680523282022,0.001,28252.0,28249.0,0.00124907]
[1680523282245,0.001,28252.0,28250.0,0.017699]
[1680523282450,0.00118,28252.0,28250.0,0.017699]
[1680523282669,0.001,28252.0,28250.0,0.017699]
[1680523282916,0.021741,28252.0,28246.0,6e-05]
[1680523283124,0.00018,28252.0,28250.0,0.017699]
[1680523283321,0.023415,28252.0,28250.0,0.019699]
[1680523283544,0.023532,28252.0,28250.0,0.019699]
[1680523284592,0.00318,28252.0,28250.0,0.019699]
[1680523284828,0.003,28252.0,28250.0,0.16167387]
[1680523285046,0.003,28252.0,28251.0,0.038809]
[1680523285297,0.003,28252.0,28251.0,0.05428578]
[1680523285518,0.00018,28254.0,28251.0,0.05428578]
[1680523285754,0.003,28252.0,28251.0,0.05428578]
[1680523286205,0.00018,28254.0,28251.0,0.05428578]
[1680523286206,0.00018,28254.0,28251.0,0.09514678]
[1680523286432,0.003,28252.0,28251.0,0.05528578]
[1680523287118,0.003,28252.0,28251.0,0.09393878]
[1680523287549,0.003,28252.0,28243.0,0.09343406]
[1680523287550,0.00792083,28251.0,28243.0,0.09343406]
[1680523287821,0.72677497,28247.0,28241.0,0.00018]
[1680523288051,0.032637,28246.0,28240.0,0.1]
[1680523288300,0.031015,28244.0,28240.0,0.1]
[1680523288527,0.43857497,28243.0,28240.0,0.1]
[1680523288753,0.031341,28242.0,28240.0,0.1]
[1680523288978,0.38423397,28241.0,28240.0,0.1]
[1680523289420,0.38423397,28241.0,28240.0,0.102]
[1680523289645,0.41767514,28241.0,28240.0,0.102]
[1680523290336,0.41767514,28241.0,28240.0,0.1]
[1680523290556,0.41767514,28241.0,28240.0,0.102]
[1680523290778,0.41767514,28241.0,28240.0,0.1]
[1680523290995,0.43567514,28241.0,28240.0,0.10309178]
[1680523292614,0.56286065,28241.0,28240.0,0.10309178]
[1680523292845,0.67067708,28241.0,28240.0,0.10309178]
[1680523293082,0.67067708,28241.0,28240.0,0.102]
[1680523293762,0.60891157,28241.0,28240.0,0.09980337]
[1680523293991,0.63591157,28241.0,28240.0,0.09980337]
[1680523294220,0.60891157,28241.0,28240.0,0.09980337]
[1680523294437,0.63591157,28241.0,28240.0,0.09980337]
[1680523294677,0.60891157,28241.0,28240.0,0.09961067]
[1680523295119,0.1480705,28241.0,28240.0,0.09961067]
[1680523295342,0.32052578,28241.0,28240.0,0.09961067]
[1680523295607,0.49514468,28241.0,28240.0,0.09714878]
[1680523295830,1.43298253,28241.0,28240.0,0.09714878]
[1680523296054,1.28298253,28241.0,28240.0,0.09714878]
[1680523296270,1.22239362,28241.0,28240.0,0.09914878]
[1680523296698,0.64635577,28241.0,28240.0,0.09473703]
[1680523297139,0.65635577,28241.0,28240.0,0.09473703]
[1680523297357,0.64635577,28241.0,28240.0,0.09473703]
[1680523297588,0.65635577,28241.0,28240.0,0.09435114]
[1680523297804,0.64635577,28241.0,28240.0,0.09235114]
[1680523297991,0.65635577,28241.0,28240.0,0.09435114]
[1680523298719,0.65635577,28241.0,28240.0,0.09198911]
[1680523298943,0.64635577,28241.0,28240.0,0.08998911]
[1680523299160,0.65635577,28241.0,28240.0,0.09198911]
[1680523299381,0.64635577,28241.0,28240.0,0.08998911]
[1680523299634,0.65635577,28241.0,28240.0,0.08965069]
[1680523299856,0.64635577,28241.0,28240.0,0.08765069]
[1680523300070,0.65635577,28241.0,28240.0,0.08965069]
[1680523300285,0.64635577,28241.0,28240.0,0.08765069]
[1680523300510,0.64635577,28241.0,28240.0,0.08533566]
[1680523300721,0.65635577,28241.0,28240.0,0.08733566]
[1680523300952,0.65635577,28241.0,28240.0,0.08533566]
[1680523300953,0.64635577,28241.0,28240.0,0.08533566]
[1680523301599,0.64635577,28241.0,28240.0,0.08304378]
[1680523301787,0.65635577,28241.0,28240.0,0.08504378]
[1680523302028,0.64635577,28241.0,28240.0,0.08304378]
[1680523302225,0.65635577,28241.0,28240.0,0.08504378]
[1680523302461,0.64635577,28241.0,28240.0,0.08304378]
[1680523302680,0.65635577,28241.0,28240.0,0.08291021]
[1680523303120,0.64635577,28241.0,28240.0,0.08091021]
[1680523303332,0.65635577,28241.0,28240.0,0.08291021]
[1680523303571,0.64635577,28241.0,28240.0,0.07879798]
[1680523303793,0.65635577,28241.0,28240.0,0.08079798]
[1680523304681,0.64635577,28241.0,28240.0,0.07670687]
[1680523304948,0.65635577,28241.0,28240.0,0.07870687]
[1680523305168,0.64635577,28241.0,28240.0,0.07670687]
[1680523305397,0.65635577,28241.0,28240.0,0.07870687]
[1680523305615,0.64635577,28241.0,28240.0,0.07463668]
[1680523305828,0.65635577,28241.0,28240.0,0.07663668]
[1680523306035,0.64635577,28241.0,28240.0,0.07463668]
[1680523306711,0.65635577,28241.0,28240.0,0.07458718]
[1680523307593,0.65635577,28241.0,28240.0,0.07258718]
[1680523307812,0.65635577,28241.0,28240.0,0.07255817]
[1680523308032,0.64635577,28241.0,28240.0,0.07055817]
[1680523308248,0.65635577,28241.0,28240.0,0.07255817]
[1680523308637,0.64635577,28241.0,28240.0,0.06854946]
[1680523308868,0.65635577,28241.0,28240.0,0.07054946]
[1680523309077,0.64635577,28241.0,28240.0,0.06854946]
[1680523309299,0.65635577,28241.0,28240.0,0.07054946]
[1680523309508,0.64635577,28241.0,28240.0,0.06854946]
[1680523309725,0.62173687,28241.0,28240.0,0.06354946]
[1680523310165,0.77173687,28241.0,28240.0,0.06354946]
[1680523310377,0.62173687,28241.0,28240.0,0.06354946]
[1680523310592,0.63173687,28241.0,28240.0,0.06554946]
[1680523310812,0.62173687,28241.0,28240.0,0.06354946]
[1680523311030,0.64023687,28241.0,28240.0,0.06554946]
[1680523311220,0.63023687,28241.0,28240.0,0.06354946]
[1680523311530,0.64023687,28241.0,28240.0,0.06554946]
[1680523311753,0.63023687,28241.0,28240.0,0.06354946]